[Event "Titled Tuesday Blitz February 07 Late 2023"]
[White "Kozak, Adam"]
[Black "Kalogeris, Ioannis"]
[WhiteFideId "753246"]
[BlackFideId "4239563"]
[WhiteElo "2572"]
[BlackElo "2423"]
[Result "0-1"]
[Round "07"]
[TimeControl "180+2"]
[Date "2023.02.07"]
[WhiteClock "0:01:06"]
[BlackClock "0:01:37"]

1. c4 {[%clk 0:02:46]}  Nf6 {[%clk 0:02:59]} 2. Nc3 {[%clk 0:02:44]}  c6 {[%clk 0:02:59]} 3. e4 {[%clk 0:02:42]}  d5 {[%clk 0:02:59]} 4. e5 {[%clk 0:02:42]}  d4 {[%clk 0:02:53]} 5. exf6 {[%clk 0:02:41]}  dxc3 {[%clk 0:02:53]} 6. fxg7 {[%clk 0:02:40]}  cxd2+ {[%clk 0:02:50]} 7. Qxd2 {[%clk 0:02:37]}  Qxd2+ {[%clk 0:02:48]} 8. Bxd2 {[%clk 0:02:38]}  Bxg7 {[%clk 0:02:47]} 9. O-O-O {[%clk 0:02:39]}  Nd7 {[%clk 0:02:42]} 10. Nf3 {[%clk 0:02:28]}  Nc5 {[%clk 0:02:34]} 11. Bb4 {[%clk 0:02:24]}  b6 {[%clk 0:02:24]} 12. Bxc5 {[%clk 0:02:19]}  bxc5 {[%clk 0:02:24]} 13. Bd3 {[%clk 0:02:19]}  Rb8 {[%clk 0:02:17]} 14. b3 {[%clk 0:02:19]}  a5 {[%clk 0:02:16]} 15. Be4 {[%clk 0:02:18]}  Bd7 {[%clk 0:02:08]} 16. Rhe1 {[%clk 0:02:16]}  a4 {[%clk 0:02:03]} 17. Kc2 {[%clk 0:02:11]}  axb3+ {[%clk 0:02:03]} 18. axb3 {[%clk 0:02:12]}  Ra8 {[%clk 0:02:02]} 19. Rd2 {[%clk 0:02:06]}  Ra2+ {[%clk 0:01:57]} 20. Kd1 {[%clk 0:01:57]}  Ra3 {[%clk 0:01:49]} 21. Ng5 {[%clk 0:01:17]}  Bc3 {[%clk 0:01:38]} 22. Rd3 {[%clk 0:01:06]}  Ra1+ {[%clk 0:01:37]} 0-1


[Site "https://www.chess.com"]

[Event "Titled Tuesday Blitz February 07 Late 2023"]
[White "Pichot, Alan"]
[Black "Martinez Ramirez, Lennis"]
[WhiteFideId "110973"]
[BlackFideId "3509079"]
[WhiteElo "2638"]
[BlackElo "2426"]
[Result "1-0"]
[Round "07"]
[TimeControl "180+2"]
[Date "2023.02.07"]
[WhiteClock "0:01:03"]
[BlackClock "0:00:01"]

1. d4 {[%clk 0:02:55]}  e6 {[%clk 0:02:58]} 2. c4 {[%clk 0:02:53]}  b6 {[%clk 0:02:57]} 3. Nf3 {[%clk 0:02:52]}  Bb7 {[%clk 0:02:57]} 4. g3 {[%clk 0:02:53]}  Bb4+ {[%clk 0:02:57]} 5. Bd2 {[%clk 0:02:52]}  Bxf3 {[%clk 0:02:57]} 6. exf3 {[%clk 0:02:53]}  Bxd2+ {[%clk 0:02:57]} 7. Qxd2 {[%clk 0:02:53]}  Ne7 {[%clk 0:02:57]} 8. f4 {[%clk 0:02:53]}  d5 {[%clk 0:02:57]} 9. Bg2 {[%clk 0:02:54]}  Nbc6 {[%clk 0:02:57]} 10. O-O {[%clk 0:02:54]}  O-O {[%clk 0:02:57]} 11. Nc3 {[%clk 0:02:55]}  dxc4 {[%clk 0:02:38]} 12. Rfd1 {[%clk 0:02:53]}  Nd5 {[%clk 0:02:20]} 13. Rac1 {[%clk 0:02:50]}  Nce7 {[%clk 0:02:06]} 14. Ne4 {[%clk 0:02:44]}  b5 {[%clk 0:02:06]} 15. b3 {[%clk 0:02:42]}  cxb3 {[%clk 0:02:05]} 16. axb3 {[%clk 0:02:43]}  a5 {[%clk 0:02:05]} 17. Nc5 {[%clk 0:02:43]}  c6 {[%clk 0:02:03]} 18. Be4 {[%clk 0:02:41]}  g6 {[%clk 0:02:02]} 19. h4 {[%clk 0:02:41]}  h5 {[%clk 0:02:01]} 20. Kg2 {[%clk 0:02:41]}  Qc7 {[%clk 0:01:56]} 21. Nd3 {[%clk 0:02:41]}  a4 {[%clk 0:01:54]} 22. bxa4 {[%clk 0:02:39]}  Rxa4 {[%clk 0:01:54]} 23. Ne5 {[%clk 0:02:39]}  b4 {[%clk 0:01:38]} 24. Bxd5 {[%clk 0:01:48]}  Nxd5 {[%clk 0:01:21]} 25. Nxc6 {[%clk 0:01:48]}  Qb7 {[%clk 0:01:19]} 26. Qc2 {[%clk 0:01:32]}  Nc3 {[%clk 0:01:15]} 27. d5 {[%clk 0:01:32]}  Ra2 {[%clk 0:00:31]} 28. Qb3 {[%clk 0:01:32]}  exd5 {[%clk 0:00:19]} 29. Rxc3 {[%clk 0:01:30]}  Rfa8 {[%clk 0:00:08]} 30. Qxb4 {[%clk 0:01:22]}  Qd7 {[%clk 0:00:08]} 31. Ne7+ {[%clk 0:01:16]}  Kh7 {[%clk 0:00:07]} 32. Nxd5 {[%clk 0:01:15]}  Rxf2+ {[%clk 0:00:07]} 33. Kxf2 {[%clk 0:01:15]}  Ra2+ {[%clk 0:00:07]} 34. Ke3 {[%clk 0:01:10]}  Qe6+ {[%clk 0:00:05]} 35. Kd4 {[%clk 0:01:04]}  Qg4 {[%clk 0:00:01]} 36. Nf6+ {[%clk 0:01:03]} 1-0


[Site "https://www.chess.com"]

[Event "Titled Tuesday Blitz February 07 Late 2023"]
[White "Harvey, Marcus R"]
[Black "Rosen, Eric"]
[WhiteFideId "400092"]
[BlackFideId "2032562"]
[WhiteElo "2462"]
[BlackElo "2349"]
[Result "0-1"]
[Round "07"]
[TimeControl "180+2"]
[Date "2023.02.07"]
[WhiteClock "0:00:14"]
[BlackClock "0:00:05"]

1. d4 {[%clk 0:03:00]}  d5 {[%clk 0:02:55]} 2. c4 {[%clk 0:02:59]}  e6 {[%clk 0:02:55]} 3. Nf3 {[%clk 0:02:59]}  Nf6 {[%clk 0:02:55]} 4. g3 {[%clk 0:02:59]}  dxc4 {[%clk 0:02:56]} 5. Bg2 {[%clk 0:02:59]}  Bb4+ {[%clk 0:02:57]} 6. Bd2 {[%clk 0:02:59]}  c5 {[%clk 0:02:57]} 7. O-O {[%clk 0:02:58]}  O-O {[%clk 0:02:57]} 8. dxc5 {[%clk 0:02:45]}  Bxc5 {[%clk 0:02:57]} 9. Ne5 {[%clk 0:02:43]}  Qc7 {[%clk 0:02:45]} 10. Bc3 {[%clk 0:02:27]}  Rd8 {[%clk 0:02:34]} 11. Qa4 {[%clk 0:02:25]}  Nbd7 {[%clk 0:02:29]} 12. Nxc4 {[%clk 0:02:18]}  Rb8 {[%clk 0:02:06]} 13. Nba3 {[%clk 0:02:12]}  a6 {[%clk 0:02:06]} 14. Rac1 {[%clk 0:02:01]}  b5 {[%clk 0:01:58]} 15. Ba5 {[%clk 0:02:01]}  Qa7 {[%clk 0:01:54]} 16. Qc2 {[%clk 0:02:01]}  Rf8 {[%clk 0:01:45]} 17. Nd2 {[%clk 0:02:00]}  Bb7 {[%clk 0:01:38]} 18. Nb3 {[%clk 0:01:45]}  Bxf2+ {[%clk 0:01:19]} 19. Rxf2 {[%clk 0:01:40]}  Ng4 {[%clk 0:01:18]} 20. e4 {[%clk 0:01:38]}  Rbc8 {[%clk 0:01:03]} 21. Qe2 {[%clk 0:01:38]}  Ndf6 {[%clk 0:01:01]} 22. Rf1 {[%clk 0:01:29]}  Nxf2 {[%clk 0:00:49]} 23. Rxf2 {[%clk 0:01:29]}  h5 {[%clk 0:00:32]} 24. h3 {[%clk 0:01:28]}  b4 {[%clk 0:00:15]} 25. Nc2 {[%clk 0:01:24]}  Bc6 {[%clk 0:00:07]} 26. Ncd4 {[%clk 0:01:16]}  Bb5 {[%clk 0:00:05]} 27. Nxb5 {[%clk 0:01:14]}  axb5 {[%clk 0:00:05]} 28. Bf3 {[%clk 0:01:06]}  Rc4 {[%clk 0:00:04]} 29. Kg2 {[%clk 0:01:04]}  Rfc8 {[%clk 0:00:04]} 30. Qd3 {[%clk 0:01:04]}  h4 {[%clk 0:00:03]} 31. gxh4 {[%clk 0:01:01]}  Nd7 {[%clk 0:00:03]} 32. Qd6 {[%clk 0:00:58]}  Nf8 {[%clk 0:00:02]} 33. h5 {[%clk 0:00:51]}  Qe3 {[%clk 0:00:01]} 34. Bxb4 {[%clk 0:00:44]}  Rc2 {[%clk 0:00:02]} 35. Bd2 {[%clk 0:00:42]}  Qa7 {[%clk 0:00:01]} 36. a3 {[%clk 0:00:27]}  Rxb2 {[%clk 0:00:01]} 37. Nd4 {[%clk 0:00:21]}  Ra2 {[%clk 0:00:01]} 38. Bb4 {[%clk 0:00:18]}  Rxf2+ {[%clk 0:00:02]} 39. Kxf2 {[%clk 0:00:19]}  e5 {[%clk 0:00:02]} 40. Qxe5 {[%clk 0:00:18]}  Rd8 {[%clk 0:00:02]} 41. Bc5 {[%clk 0:00:19]}  Qd7 {[%clk 0:00:02]} 42. Nf5 {[%clk 0:00:15]}  Qd2+ {[%clk 0:00:02]} 43. Kf1 {[%clk 0:00:12]}  Ne6 {[%clk 0:00:02]} 44. Ne7+ {[%clk 0:00:12]}  Kh8 {[%clk 0:00:02]} 45. Nd5 {[%clk 0:00:12]}  Qc1+ {[%clk 0:00:02]} 46. Kg2 {[%clk 0:00:11]}  Qxc5 {[%clk 0:00:03]} 47. h6 {[%clk 0:00:12]}  Qf8 {[%clk 0:00:02]} 48. h4 {[%clk 0:00:11]}  Kg8 {[%clk 0:00:02]} 49. Bg4 {[%clk 0:00:11]}  gxh6 {[%clk 0:00:02]} 50. Nf6+ {[%clk 0:00:11]}  Kh8 {[%clk 0:00:02]} 51. Nh5+ {[%clk 0:00:11]}  Kg8 {[%clk 0:00:02]} 52. Qf6 {[%clk 0:00:12]}  Ng7 {[%clk 0:00:02]} 53. Nxg7 {[%clk 0:00:11]}  Rd2+ {[%clk 0:00:01]} 54. Kh3 {[%clk 0:00:11]}  Qxg7 {[%clk 0:00:02]} 55. Qf4 {[%clk 0:00:10]}  Qc3+ {[%clk 0:00:02]} 56. Bf3 {[%clk 0:00:11]}  Rd3 {[%clk 0:00:02]} 57. Kg4 {[%clk 0:00:11]}  Qxa3 {[%clk 0:00:02]} 58. Qb8+ {[%clk 0:00:11]}  Qf8 {[%clk 0:00:02]} 59. Qe5 {[%clk 0:00:11]}  Qg7+ {[%clk 0:00:02]} 60. Qxg7+ {[%clk 0:00:12]}  Kxg7 {[%clk 0:00:03]} 61. e5 {[%clk 0:00:12]}  b4 {[%clk 0:00:04]} 62. Be4 {[%clk 0:00:12]}  Rd4 {[%clk 0:00:04]} 63. Kf5 {[%clk 0:00:13]}  Rxe4 {[%clk 0:00:05]} 64. e6 {[%clk 0:00:14]}  Rxe6 {[%clk 0:00:05]} 0-1


[Site "https://www.chess.com"]

[Event "Titled Tuesday Blitz February 07 Late 2023"]
[White "Di Berardino, Diego Rafael"]
[Black "Ozen, Bahadir"]
[WhiteFideId "2105446"]
[BlackFideId "6337058"]
[WhiteElo "2479"]
[BlackElo "2369"]
[Result "0-1"]
[Round "07"]
[TimeControl "180+2"]
[Date "2023.02.07"]
[WhiteClock "0:00:10"]
[BlackClock "0:00:08"]

1. e4 {[%clk 0:02:58]}  g6 {[%clk 0:03:00]} 2. d4 {[%clk 0:02:57]}  Bg7 {[%clk 0:03:00]} 3. Nc3 {[%clk 0:02:57]}  e6 {[%clk 0:03:01]} 4. f4 {[%clk 0:02:55]}  Ne7 {[%clk 0:03:01]} 5. Nf3 {[%clk 0:02:55]}  a6 {[%clk 0:03:01]} 6. Bd3 {[%clk 0:02:54]}  b5 {[%clk 0:03:01]} 7. O-O {[%clk 0:02:44]}  Nbc6 {[%clk 0:02:59]} 8. Be3 {[%clk 0:02:33]}  Nb4 {[%clk 0:02:49]} 9. f5 {[%clk 0:02:14]}  Nxd3 {[%clk 0:02:46]} 10. Qxd3 {[%clk 0:02:01]}  O-O {[%clk 0:02:40]} 11. Nh4 {[%clk 0:01:22]}  Nxf5 {[%clk 0:02:21]} 12. Nxf5 {[%clk 0:01:20]}  exf5 {[%clk 0:02:20]} 13. exf5 {[%clk 0:01:20]}  Bb7 {[%clk 0:02:19]} 14. d5 {[%clk 0:01:11]}  Qh4 {[%clk 0:02:13]} 15. Ne4 {[%clk 0:01:04]}  Rae8 {[%clk 0:02:09]} 16. Rf4 {[%clk 0:01:02]}  Qd8 {[%clk 0:01:52]} 17. f6 {[%clk 0:00:57]}  Bh8 {[%clk 0:01:52]} 18. Raf1 {[%clk 0:00:53]}  Qa8 {[%clk 0:01:23]} 19. Rh4 {[%clk 0:00:41]}  Bxd5 {[%clk 0:01:21]} 20. Ng5 {[%clk 0:00:41]}  Bc4 {[%clk 0:01:01]} 21. Qd4 {[%clk 0:00:31]}  c5 {[%clk 0:00:38]} 22. Qf4 {[%clk 0:00:18]}  Bxf1 {[%clk 0:00:38]} 23. Kxf1 {[%clk 0:00:15]}  Qc6 {[%clk 0:00:15]} 24. Nxh7 {[%clk 0:00:10]}  Re6 {[%clk 0:00:08]} 25. Nxf8 {[%clk 0:00:10]}  Rxf6 {[%clk 0:00:08]} 0-1


[Site "https://www.chess.com"]

[Event "Titled Tuesday Blitz February 07 Late 2023"]
[White "Yanchenko, Roman"]
[Black "Saveliev, Alexei"]
[WhiteFideId "4137329"]
[BlackFideId "24128546"]
[WhiteElo "2466"]
[BlackElo "2385"]
[Result "1/2-1/2"]
[Round "07"]
[TimeControl "180+2"]
[Date "2023.02.07"]
[WhiteClock "0:00:07"]
[BlackClock "0:00:47"]

1. d4 {[%clk 0:03:00]}  g6 {[%clk 0:02:53]} 2. Nf3 {[%clk 0:03:00]}  Bg7 {[%clk 0:02:53]} 3. c4 {[%clk 0:02:59]}  d6 {[%clk 0:02:53]} 4. Nc3 {[%clk 0:02:59]}  Nc6 {[%clk 0:02:54]} 5. e3 {[%clk 0:02:57]}  e5 {[%clk 0:02:53]} 6. Be2 {[%clk 0:02:57]}  f5 {[%clk 0:02:53]} 7. dxe5 {[%clk 0:02:56]}  Nxe5 {[%clk 0:02:53]} 8. O-O {[%clk 0:02:55]}  Nxf3+ {[%clk 0:02:50]} 9. Bxf3 {[%clk 0:02:55]}  Nf6 {[%clk 0:02:51]} 10. Qb3 {[%clk 0:02:50]}  Rb8 {[%clk 0:02:46]} 11. Rd1 {[%clk 0:02:50]}  Qe7 {[%clk 0:02:46]} 12. Bd2 {[%clk 0:02:48]}  O-O {[%clk 0:02:42]} 13. c5+ {[%clk 0:02:48]}  Be6 {[%clk 0:02:39]} 14. cxd6 {[%clk 0:02:48]}  cxd6 {[%clk 0:02:38]} 15. Nd5 {[%clk 0:02:46]}  Qf7 {[%clk 0:02:34]} 16. Bb4 {[%clk 0:02:45]}  Rfd8 {[%clk 0:02:34]} 17. Rac1 {[%clk 0:02:38]}  Rbc8 {[%clk 0:02:30]} 18. Rxc8 {[%clk 0:02:29]}  Rxc8 {[%clk 0:02:31]} 19. Nxf6+ {[%clk 0:02:20]}  Bxf6 {[%clk 0:02:32]} 20. Qa3 {[%clk 0:02:20]}  Rc2 {[%clk 0:02:26]} 21. Qxa7 {[%clk 0:02:17]}  Rxb2 {[%clk 0:02:18]} 22. Bxd6 {[%clk 0:02:12]}  Rxa2 {[%clk 0:02:18]} 23. Qxb7 {[%clk 0:02:11]}  Qxb7 {[%clk 0:02:18]} 24. Bxb7 {[%clk 0:02:12]}  Ra1 {[%clk 0:02:16]} 25. Rxa1 {[%clk 0:02:12]}  Bxa1 {[%clk 0:02:17]} 26. g3 {[%clk 0:02:08]}  Kf7 {[%clk 0:02:17]} 27. Bc5 {[%clk 0:02:05]}  Bf6 {[%clk 0:02:16]} 28. Bd4 {[%clk 0:02:05]}  Be7 {[%clk 0:02:16]} 29. f3 {[%clk 0:02:03]}  Bd6 {[%clk 0:02:16]} 30. Bc6 {[%clk 0:02:02]}  Be7 {[%clk 0:02:16]} 31. Kf2 {[%clk 0:02:03]}  Bd6 {[%clk 0:02:17]} 32. e4 {[%clk 0:02:00]}  fxe4 {[%clk 0:02:17]} 33. fxe4 {[%clk 0:01:59]}  Be7 {[%clk 0:02:18]} 34. Ke3 {[%clk 0:01:57]}  Bg5+ {[%clk 0:02:18]} 35. Kd3 {[%clk 0:01:57]}  Be7 {[%clk 0:02:19]} 36. Be5 {[%clk 0:01:56]}  Bc5 {[%clk 0:02:18]} 37. Bd5 {[%clk 0:01:55]}  Bg1 {[%clk 0:02:18]} 38. g4 {[%clk 0:01:53]}  h5 {[%clk 0:02:17]} 39. g5 {[%clk 0:01:50]}  Ke7 {[%clk 0:02:12]} 40. Bb7 {[%clk 0:01:38]}  Bb6 {[%clk 0:02:09]} 41. Bf4 {[%clk 0:01:31]}  Kf7 {[%clk 0:02:08]} 42. Kc3 {[%clk 0:01:29]}  Bc5 {[%clk 0:02:06]} 43. Bc6 {[%clk 0:01:27]}  Ke7 {[%clk 0:02:06]} 44. Bb5 {[%clk 0:01:27]}  Kf7 {[%clk 0:02:02]} 45. Kd3 {[%clk 0:01:22]}  Ke7 {[%clk 0:02:02]} 46. Bg3 {[%clk 0:01:16]}  Kf7 {[%clk 0:02:02]} 47. Bc7 {[%clk 0:01:13]}  Ke7 {[%clk 0:02:02]} 48. Ke2 {[%clk 0:00:39]}  Kf7 {[%clk 0:01:58]} 49. Kf3 {[%clk 0:00:39]}  Be7 {[%clk 0:01:58]} 50. Kf4 {[%clk 0:00:39]}  Bb4 {[%clk 0:01:58]} 51. Kf3 {[%clk 0:00:28]}  Ke7 {[%clk 0:01:57]} 52. Be5 {[%clk 0:00:26]}  Kf7 {[%clk 0:01:57]} 53. Bd4 {[%clk 0:00:25]}  Bd6 {[%clk 0:01:57]} 54. h4 {[%clk 0:00:23]}  Bb4 {[%clk 0:01:58]} 55. Bf2 {[%clk 0:00:22]}  Ke7 {[%clk 0:01:57]} 56. Kf4 {[%clk 0:00:22]}  Bd6+ {[%clk 0:01:54]} 57. Ke3 {[%clk 0:00:22]}  Bc5+ {[%clk 0:01:54]} 58. Ke2 {[%clk 0:00:22]}  Bb4 {[%clk 0:01:52]} 59. Kd3 {[%clk 0:00:21]}  Ba3 {[%clk 0:01:43]} 60. Kd4 {[%clk 0:00:20]}  Bb4 {[%clk 0:01:43]} 61. Bc6 {[%clk 0:00:18]}  Ba3 {[%clk 0:01:43]} 62. Be1 {[%clk 0:00:18]}  Bb2+ {[%clk 0:01:39]} 63. Ke3 {[%clk 0:00:17]}  Be5 {[%clk 0:01:39]} 64. Bd5 {[%clk 0:00:14]}  Bb2 {[%clk 0:01:30]} 65. Bb7 {[%clk 0:00:14]}  Be5 {[%clk 0:01:30]} 66. Bc6 {[%clk 0:00:14]}  Bb2 {[%clk 0:01:30]} 67. Kf4 {[%clk 0:00:14]}  Bd4 {[%clk 0:01:26]} 68. Bb4+ {[%clk 0:00:14]}  Kf7 {[%clk 0:01:26]} 69. Bd6 {[%clk 0:00:14]}  Bf2 {[%clk 0:01:25]} 70. Ba3 {[%clk 0:00:07]}  Bxh4 {[%clk 0:01:24]} 71. Bb4 {[%clk 0:00:07]}  Bf2 {[%clk 0:01:24]} 72. Kf3 {[%clk 0:00:07]}  Bd4 {[%clk 0:01:24]} 73. Bd2 {[%clk 0:00:07]}  Be5 {[%clk 0:01:18]} 74. Bf4 {[%clk 0:00:07]}  Bd4 {[%clk 0:01:18]} 75. Ke2 {[%clk 0:00:07]}  Bc4+ {[%clk 0:01:16]} 76. Kf3 {[%clk 0:00:06]}  Be6 {[%clk 0:01:17]} 77. Bg3 {[%clk 0:00:07]}  Ke7 {[%clk 0:01:17]} 78. Ke2 {[%clk 0:00:07]}  Bc5 {[%clk 0:01:17]} 79. Bb5 {[%clk 0:00:07]}  Bd4 {[%clk 0:01:14]} 80. Kd3 {[%clk 0:00:06]}  Bb2 {[%clk 0:01:13]} 81. Bf4 {[%clk 0:00:06]}  h4 {[%clk 0:01:11]} 82. Ke3 {[%clk 0:00:05]}  Bc1+ {[%clk 0:01:09]} 83. Kf3 {[%clk 0:00:06]}  Bxf4 {[%clk 0:01:07]} 84. Kxf4 {[%clk 0:00:07]}  h3 {[%clk 0:01:05]} 85. Kg3 {[%clk 0:00:07]}  Bc8 {[%clk 0:00:56]} 86. Bd3 {[%clk 0:00:07]}  Kd6 {[%clk 0:00:53]} 87. e5+ {[%clk 0:00:06]}  Kxe5 {[%clk 0:00:54]} 88. Bxg6 {[%clk 0:00:06]}  Bf5 {[%clk 0:00:50]} 89. Bh5 {[%clk 0:00:06]}  Ke6 {[%clk 0:00:49]} 90. Bf3 {[%clk 0:00:06]}  Kf7 {[%clk 0:00:49]} 91. Kh4 {[%clk 0:00:06]}  h2 {[%clk 0:00:46]} 92. Kg3 {[%clk 0:00:06]}  Kg6 {[%clk 0:00:46]} 93. Kxh2 {[%clk 0:00:07]}  Kxg5 {[%clk 0:00:47]} 1/2-1/2


[Site "https://www.chess.com"]

[Event "Titled Tuesday Blitz February 07 Late 2023"]
[White "Ismagilov, Damir"]
[Black "Timmermans, Mark"]
[WhiteFideId "34199982"]
[BlackFideId "1026399"]
[WhiteElo "2156"]
[BlackElo "2392"]
[Result "0-1"]
[Round "07"]
[TimeControl "180+2"]
[Date "2023.02.07"]
[WhiteClock "0:01:14"]
[BlackClock "0:02:08"]

1. e4 {[%clk 0:03:00]}  e5 {[%clk 0:02:55]} 2. Nf3 {[%clk 0:03:01]}  Nc6 {[%clk 0:02:54]} 3. Nc3 {[%clk 0:03:00]}  Nf6 {[%clk 0:02:53]} 4. a4 {[%clk 0:03:00]}  Be7 {[%clk 0:02:47]} 5. Bb5 {[%clk 0:02:59]}  O-O {[%clk 0:02:44]} 6. O-O {[%clk 0:02:55]}  d6 {[%clk 0:02:43]} 7. Bxc6 {[%clk 0:02:46]}  bxc6 {[%clk 0:02:43]} 8. d4 {[%clk 0:02:47]}  exd4 {[%clk 0:02:38]} 9. Nxd4 {[%clk 0:02:47]}  Bd7 {[%clk 0:02:38]} 10. b3 {[%clk 0:02:37]}  c5 {[%clk 0:02:36]} 11. Nf5 {[%clk 0:02:34]}  Nxe4 {[%clk 0:02:25]} 12. Nxe7+ {[%clk 0:01:45]}  Qxe7 {[%clk 0:02:26]} 13. Re1 {[%clk 0:01:45]}  Qf6 {[%clk 0:02:12]} 14. Rxe4 {[%clk 0:01:29]}  Qxc3 {[%clk 0:02:11]} 15. Bd2 {[%clk 0:01:21]}  Qf6 {[%clk 0:02:11]} 16. Qe2 {[%clk 0:01:14]}  Qxa1+ {[%clk 0:02:08]} 0-1


[Site "https://www.chess.com"]

[Event "Titled Tuesday Blitz February 07 Late 2023"]
[White "Saya, Ethan"]
[Black "Tan, Zhongyi"]
[WhiteFideId "26095181"]
[BlackFideId "8603642"]
[WhiteElo "2181"]
[BlackElo "2517"]
[Result "0-1"]
[Round "07"]
[TimeControl "180+2"]
[Date "2023.02.07"]
[WhiteClock "0:00:05"]
[BlackClock "0:00:11"]

1. d4 {[%clk 0:03:00]}  Nf6 {[%clk 0:02:58]} 2. c4 {[%clk 0:02:59]}  e6 {[%clk 0:02:59]} 3. g3 {[%clk 0:02:58]}  c5 {[%clk 0:02:57]} 4. d5 {[%clk 0:02:57]}  exd5 {[%clk 0:02:57]} 5. cxd5 {[%clk 0:02:56]}  d6 {[%clk 0:02:58]} 6. Bg2 {[%clk 0:02:56]}  g6 {[%clk 0:02:59]} 7. Nc3 {[%clk 0:02:55]}  Bg7 {[%clk 0:03:00]} 8. Nf3 {[%clk 0:02:54]}  O-O {[%clk 0:03:01]} 9. O-O {[%clk 0:02:54]}  Re8 {[%clk 0:03:01]} 10. Nd2 {[%clk 0:02:48]}  Nbd7 {[%clk 0:02:48]} 11. Nc4 {[%clk 0:02:46]}  Nb6 {[%clk 0:02:27]} 12. Nxb6 {[%clk 0:02:36]}  Qxb6 {[%clk 0:02:26]} 13. a4 {[%clk 0:02:19]}  Nd7 {[%clk 0:02:22]} 14. Bf4 {[%clk 0:02:17]}  Ne5 {[%clk 0:02:20]} 15. Qc1 {[%clk 0:02:14]}  a6 {[%clk 0:02:14]} 16. a5 {[%clk 0:02:04]}  Qd8 {[%clk 0:02:14]} 17. Rd1 {[%clk 0:01:46]}  Bd7 {[%clk 0:02:05]} 18. Bh6 {[%clk 0:01:42]}  Bh8 {[%clk 0:02:04]} 19. Bg5 {[%clk 0:01:41]}  Qc7 {[%clk 0:02:02]} 20. Bd2 {[%clk 0:01:37]}  b5 {[%clk 0:01:55]} 21. axb6 {[%clk 0:01:36]}  Qxb6 {[%clk 0:01:55]} 22. Qc2 {[%clk 0:01:25]}  Bf5 {[%clk 0:01:50]} 23. e4 {[%clk 0:01:24]}  Bg4 {[%clk 0:01:50]} 24. Rdb1 {[%clk 0:01:17]}  Nf3+ {[%clk 0:01:36]} 25. Kh1 {[%clk 0:01:10]}  Nd4 {[%clk 0:01:14]} 26. Qd3 {[%clk 0:01:06]}  Nb3 {[%clk 0:01:07]} 27. Ra3 {[%clk 0:01:05]}  c4 {[%clk 0:01:06]} 28. Qc2 {[%clk 0:01:02]}  Qxf2 {[%clk 0:01:00]} 29. Rxb3 {[%clk 0:00:54]}  cxb3 {[%clk 0:01:00]} 30. Qd3 {[%clk 0:00:54]}  Qd4 {[%clk 0:00:42]} 31. Qxd4 {[%clk 0:00:44]}  Bxd4 {[%clk 0:00:43]} 32. Ra1 {[%clk 0:00:41]}  f5 {[%clk 0:00:40]} 33. exf5 {[%clk 0:00:36]}  Bxf5 {[%clk 0:00:40]} 34. Ra3 {[%clk 0:00:36]}  Bc2 {[%clk 0:00:36]} 35. Bh3 {[%clk 0:00:36]}  Re5 {[%clk 0:00:26]} 36. Be6+ {[%clk 0:00:36]}  Kg7 {[%clk 0:00:26]} 37. Ra4 {[%clk 0:00:28]}  Bc5 {[%clk 0:00:21]} 38. Kg2 {[%clk 0:00:15]}  Rf8 {[%clk 0:00:20]} 39. Kh3 {[%clk 0:00:15]}  Bd3 {[%clk 0:00:19]} 40. Nd1 {[%clk 0:00:12]}  Bf1+ {[%clk 0:00:18]} 41. Kg4 {[%clk 0:00:11]}  Be2+ {[%clk 0:00:17]} 42. Kh3 {[%clk 0:00:10]}  Rh5+ {[%clk 0:00:17]} 43. Kg2 {[%clk 0:00:09]}  Bxd1 {[%clk 0:00:16]} 44. Bc3+ {[%clk 0:00:10]}  Kh6 {[%clk 0:00:13]} 45. Bd2+ {[%clk 0:00:07]}  g5 {[%clk 0:00:14]} 46. h4 {[%clk 0:00:07]}  Bf3+ {[%clk 0:00:10]} 47. Kh2 {[%clk 0:00:08]}  Kg7 {[%clk 0:00:09]} 48. Bxg5 {[%clk 0:00:07]}  Rxg5 {[%clk 0:00:08]} 49. hxg5 {[%clk 0:00:08]}  Bh5 {[%clk 0:00:08]} 50. Rxa6 {[%clk 0:00:08]}  Rf2+ {[%clk 0:00:08]} 51. Kh3 {[%clk 0:00:08]}  Rxb2 {[%clk 0:00:06]} 52. Ra8 {[%clk 0:00:07]}  Bf7 {[%clk 0:00:05]} 53. Rb8 {[%clk 0:00:04]}  Bxe6+ {[%clk 0:00:05]} 54. dxe6 {[%clk 0:00:05]}  Re2 {[%clk 0:00:05]} 55. Rb7+ {[%clk 0:00:04]}  Kg6 {[%clk 0:00:05]} 56. Rxb3 {[%clk 0:00:03]}  Rxe6 {[%clk 0:00:05]} 57. Kg4 {[%clk 0:00:04]}  Re5 {[%clk 0:00:05]} 58. Kf3 {[%clk 0:00:04]}  Rxg5 {[%clk 0:00:06]} 59. Rb8 {[%clk 0:00:04]}  Re5 {[%clk 0:00:06]} 60. Kf4 {[%clk 0:00:04]}  Rf5+ {[%clk 0:00:06]} 61. Ke4 {[%clk 0:00:05]}  Re5+ {[%clk 0:00:07]} 62. Kf4 {[%clk 0:00:05]}  Re6 {[%clk 0:00:07]} 63. Rg8+ {[%clk 0:00:05]}  Kf7 {[%clk 0:00:07]} 64. Rh8 {[%clk 0:00:06]}  Rf6+ {[%clk 0:00:08]} 65. Kg4 {[%clk 0:00:06]}  Kg7 {[%clk 0:00:09]} 66. Rd8 {[%clk 0:00:06]}  Rg6+ {[%clk 0:00:10]} 67. Kf4 {[%clk 0:00:07]}  Rf6+ {[%clk 0:00:10]} 68. Kg4 {[%clk 0:00:07]}  Rf7 {[%clk 0:00:11]} 69. Kg5 {[%clk 0:00:07]}  h6+ {[%clk 0:00:11]} 70. Kh5 {[%clk 0:00:07]}  Re7 {[%clk 0:00:11]} 71. g4 {[%clk 0:00:07]}  Re5+ {[%clk 0:00:11]} 72. Kh4 {[%clk 0:00:07]}  Kg6 {[%clk 0:00:11]} 73. Rg8+ {[%clk 0:00:07]}  Kf7 {[%clk 0:00:11]} 74. Rh8 {[%clk 0:00:07]}  Kg7 {[%clk 0:00:11]} 75. Rd8 {[%clk 0:00:08]}  d5 {[%clk 0:00:12]} 76. Rd7+ {[%clk 0:00:08]}  Be7+ {[%clk 0:00:11]} 77. Kg3 {[%clk 0:00:07]}  Kg6 {[%clk 0:00:11]} 78. Kf4 {[%clk 0:00:08]}  Bf6 {[%clk 0:00:12]} 79. Rd6 {[%clk 0:00:07]}  Re4+ {[%clk 0:00:12]} 80. Kf3 {[%clk 0:00:08]}  Rd4 {[%clk 0:00:11]} 81. Kg3 {[%clk 0:00:07]}  Rd3+ {[%clk 0:00:10]} 82. Kf4 {[%clk 0:00:07]}  Rd4+ {[%clk 0:00:11]} 83. Kf3 {[%clk 0:00:08]}  Kg5 {[%clk 0:00:10]} 84. Rd7 {[%clk 0:00:08]}  Rf4+ {[%clk 0:00:10]} 85. Ke3 {[%clk 0:00:08]}  d4+ {[%clk 0:00:11]} 86. Kd3 {[%clk 0:00:08]}  Rxg4 {[%clk 0:00:11]} 87. Rxd4 {[%clk 0:00:05]}  Rxd4+ {[%clk 0:00:11]} 0-1


[Site "https://www.chess.com"]